fUST/lending_fUST_20250908
["ID","MTS","AMOUNT","RATE_DAILY","PERIOD"]
[384325284,1757337048699,-500.48989097,0.0001595,2]
[384325286,1757337048709,-2183.31810187,0.00015975,2]
[384325288,1757337048718,-460.0,0.00016026,2]
[384325290,1757337048728,-480.0,0.00016164,2]
[384325291,1757337048737,-480.0,0.00016164,2]
[384325292,1757337048747,-1000.0,0.00016428,2]
[384325294,1757337048756,-1000.0,0.00016428,2]
[384325295,1757337048765,-480.0,0.00016438,2]
[384325296,1757337048775,-480.0,0.00016438,2]
[384325297,1757337048784,-560.0,0.00016574,2]
[384325298,1757337048794,-293.04999999,0.00016712,2]
[384325299,1757337048803,-480.0,0.00016712,2]
[384325300,1757337048812,-1500.0,0.00016976,2]
[384325301,1757337048822,-1500.0,0.00016976,2]
[384325302,1757337048831,-480.0,0.00016986,2]
[384325303,1757337048840,-660.0,0.00017122,2]
[384325304,1757337048849,-864.0,0.00017242,2]
[384325305,1757337048860,-480.0,0.0001726,2]
[384325306,1757337048869,-1000.0,0.00017524,2]
[384325307,1757337048879,-2000.0,0.00017524,2]
[384325308,1757337048888,-480.0,0.00017534,2]
[384325309,1757337048897,-760.0,0.00017669,2]
[384325310,1757337048907,-1382.28544016,0.00017774,2]
[384325311,1757337048916,-409.0,0.00017775,2]
[384325312,1757337048926,-480.0,0.00017808,2]
[384325313,1757337048935,-2500.0,0.00018072,2]
[384325314,1757337048945,-480.0,0.00018082,2]
[384325315,1757337048954,-860.0,0.00018217,2]
[384325316,1757337048964,-480.0,0.00018356,2]
[384325317,1757337048974,-169.430008,0.00018493,2]
[384325318,1757337048983,-3000.0,0.0001862,2]
[384325319,1757337048993,-480.0,0.0001863,2]
[384325320,1757337049003,-960.0,0.00018765,2]
[384325321,1757337049012,-400.0,0.00018836,26]
[384325322,1757337049022,-468.745,0.00018904,2]
[384325323,1757337049032,-480.0,0.00018904,2]
[384325324,1757337049041,-1000.0,0.00018966,20]
[384325325,1757337049051,-4027.0,0.00019,2]
[384325326,1757337049061,-3500.0,0.00019168,2]
[384325327,1757337049070,-460.78213396,0.00019178,2]
[384325328,1757337049080,-1630.46093645,0.00019211,2]
[384325329,1757337049089,-1060.0,0.00019313,2]
[384325330,1757337049099,-1621.75536897,0.00019716,2]
[384325331,1757337049109,-1160.0,0.00019861,2]
[384325332,1757337049118,-19246.04487029,0.000199,2]
[384325333,1757337049128,-1382.28544016,0.00019935,2]
[384325334,1757337049137,-4000.0,0.0002,4]
[384325335,1757337049147,-427.117813,0.00020187,2]
[384325336,1757337049157,-1260.0,0.00020409,2]
[384325337,1757337049167,-409.0,0.00020775,2]
[384325338,1757337049177,-1000.0,0.00020863,20]
[384325339,1757337049186,-244.0,0.00020863,20]
[384325340,1757337049196,-1360.0,0.00020957,2]
[384325341,1757337049206,-3000.0,0.00021,2]
[384325342,1757337049215,-3000.0,0.0002101,2]
[384325343,1757337049225,-3000.0,0.0002102,2]
[384325344,1757337049235,-3000.0,0.0002103,2]
[384325345,1757337049244,-3000.0,0.0002104,2]
[384325346,1757337049255,-3000.0,0.0002105,2]
[384325347,1757337049264,-3000.0,0.0002106,2]
[384325348,1757337049274,-3000.0,0.0002107,2]
[384325349,1757337049283,-3000.0,0.0002108,2]
[384325350,1757337049292,-3000.0,0.0002109,2]
[384325351,1757337049302,-3000.0,0.000211,2]
[384325352,1757337049311,-3000.0,0.0002111,2]
[384325353,1757337049321,-3000.0,0.0002112,2]
[384325354,1757337049333,-3000.0,0.0002113,2]
[384325355,1757337049342,-3000.0,0.0002114,2]
[384325356,1757337049351,-3000.0,0.0002115,2]
[384325357,1757337049361,-3000.0,0.0002116,2]
[384325358,1757337049370,-3000.0,0.0002117,2]
[384325359,1757337049380,-19246.04487013,0.00021173,2]
[384325360,1757337049389,-3000.0,0.0002118,2]
[384325361,1757337049399,-3000.0,0.0002119,2]
[384325362,1757337049409,-3000.0,0.000212,2]
[384325363,1757337049419,-3000.0,0.0002121,2]
[384325364,1757337049428,-3000.0,0.0002122,2]
[384325365,1757337049438,-3000.0,0.0002123,2]
[384325366,1757337049447,-3000.0,0.0002124,2]
[384325367,1757337049456,-3000.0,0.0002125,2]
[384325368,1757337049465,-4525.408649,0.0002126,2]
[384325369,1757337049475,-1026.720164,0.000215,2]
[384325370,1757337049484,-1158.18996234,0.00021505,2]
[384325371,1757337049494,-25983.4912153,0.00021522,2]
[384325372,1757337049503,-2100.0,0.00021712,2]
[384325373,1757337049513,-153.0,0.00021918,2]
[384325374,1757337049523,-153.0,0.00021918,2]
[384325375,1757337049532,-153.0,0.00021918,2]
[384325376,1757337049541,-153.0,0.00021918,2]
[384325377,1757337049551,-153.0,0.00021918,2]
[384325378,1757337049560,-153.0,0.00021918,2]
[384325379,1757337049569,-153.0,0.00021918,2]
[384325380,1757337049578,-169.430008,0.00021918,2]
[384325381,1757337049588,-153.0,0.00021918,2]
[384325382,1757337049597,-153.0,0.00021918,2]
[384325383,1757337049606,-153.0,0.00021918,2]
[384325384,1757337049615,-151.0,0.00021918,2]
[384325385,1757337049625,-151.0,0.00021918,2]
[384325386,1757337049635,-200.0,0.00022,7]
[384325387,1757337049644,-2000.0,0.00022,2]
[384325388,1757337049654,-4527.8644271,0.00022,2]
[384325389,1757337049663,-1000.0,0.00022,2]
[384325390,1757337049673,-583.45,0.00022,2]
[384325391,1757337049682,-151.09242464,0.00022,3]
[384325392,1757337049692,-500.0,0.00022038,2]
[384325393,1757337049701,-317.0,0.00022042,2]
[384325394,1757337049710,-1382.28544016,0.00022097,2]
[384325395,1757337049719,-317.0,0.00022141,2]
[384325396,1757337049728,-317.0,0.00022145,2]
[384325397,1757337049737,-317.0,0.00022157,2]
[384325398,1757337049746,-317.0,0.00022183,2]
[384325399,1757337049756,-317.0,0.00022228,2]
[384325400,1757337049766,-317.0,0.0002223,2]
[384325401,1757337049775,-500.0,0.00022312,2]
[384325402,1757337049786,-317.0,0.00022369,2]
[384325403,1757337049795,-10576.6745308,0.00022427,10]
[384325404,1757337049806,-19246.04487013,0.00022447,2]
[384325405,1757337049815,-317.0,0.00022463,2]
[384325406,1757337049824,-157.0,0.00022466,2]
[384325407,1757337049833,-157.09603311,0.00022466,2]
[384325408,1757337049843,-500.0,0.00022466,2]
[384325409,1757337049852,-157.0,0.00022466,2]
[384325410,1757337049861,-157.0,0.00022466,2]
[384325411,1757337049871,-157.0,0.00022466,2]
[384325412,1757337049880,-157.0,0.00022466,2]
[384325413,1757337049889,-157.0,0.00022466,2]
[384325414,1757337049899,-305.18191659,0.00022466,2]
[384325415,1757337049909,-157.0,0.00022466,2]
[384325416,1757337049918,-500.0,0.00022466,2]
[384325417,1757337049928,-500.0,0.00022466,2]
[384325418,1757337049939,-157.0,0.00022466,2]
[384325419,1757337049948,-157.0,0.00022466,2]
[384325420,1757337049957,-500.0,0.00022466,2]
[384325421,1757337049967,-157.4254851,0.00022466,2]
[384325422,1757337049976,-157.0,0.00022466,2]
[384325423,1757337049985,-157.0,0.00022466,2]
[384325424,1757337049994,-157.0,0.00022466,2]
[384325425,1757337050004,-308.0,0.00022466,2]
[384325426,1757337050013,-500.0,0.00022466,2]
[384325427,1757337050023,-157.0,0.00022466,2]
[384325428,1757337050032,-308.34736609,0.00022466,2]
[384325429,1757337050041,-157.0,0.00022466,2]
[384325430,1757337050051,-157.0,0.00022466,2]
[384325431,1757337050061,-157.0,0.00022466,2]
[384325432,1757337050071,-157.0,0.00022466,2]
[384325433,1757337050081,-302.18639333,0.00022466,2]
[384325434,1757337050092,-500.0,0.00022466,2]
[384325435,1757337050103,-157.0,0.00022466,2]
[384325436,1757337050114,-500.0,0.00022466,2]
[384325437,1757337050123,-157.0,0.00022466,2]
[384325438,1757337050133,-500.0,0.00022466,2]
[384325439,1757337050143,-157.09638517,0.00022466,2]
[384325440,1757337050152,-157.0,0.00022466,2]
[384325441,1757337050162,-296.0,0.00022466,2]
[384325442,1757337050171,-500.0,0.00022466,2]
[384325443,1757337050180,-1000.0,0.000225,2]
[384325444,1757337050190,-203.26219058,0.000225,10]
[384325445,1757337050199,-160.0,0.000225,10]
[384325446,1757337050208,-160.0,0.000225,10]
[384325447,1757337050218,-530.71506861,0.000225,10]
[384325448,1757337050227,-417.15472785,0.000225,10]
[384325449,1757337050236,-4000.0,0.000225,4]
[384325450,1757337050246,-300.0,0.00022515,2]
[384325451,1757337050255,-160.0,0.00022562,3]
[384325452,1757337050264,-399.98,0.00022586,2]
[384325453,1757337050274,-647.01202403,0.0002274,2]
[384325454,1757337050283,-293.0912377,0.0002274,2]
[384325455,1757337050292,-268.7898824,0.0002274,2]
[384325456,1757337050302,-157.0,0.0002274,2]
[384325457,1757337050311,-157.0,0.0002274,2]
[384325458,1757337050322,-157.0,0.0002274,2]
[384325459,1757337050335,-500.0,0.0002274,2]
[384325460,1757337050344,-500.0,0.0002274,2]
[384325461,1757337050354,-157.0,0.0002274,2]
[384325462,1757337050363,-157.0,0.0002274,2]
[384325463,1757337050374,-500.0,0.0002274,2]
[384325464,1757337050383,-157.0,0.0002274,2]
[384325465,1757337050393,-157.0,0.0002274,2]
[384325466,1757337050404,-157.0,0.0002274,2]
[384325467,1757337050414,-500.0,0.0002274,2]
[384325468,1757337050424,-157.0,0.0002274,2]
[384325469,1757337050433,-157.0,0.0002274,2]
[384325470,1757337050443,-157.0,0.0002274,2]
[384325471,1757337050452,-157.0,0.0002274,2]
[384325472,1757337050461,-157.0,0.0002274,2]
[384325473,1757337050471,-500.0,0.0002274,2]
[384325474,1757337050480,-157.0,0.0002274,2]
[384325475,1757337050490,-560.13701321,0.0002274,2]
[384325476,1757337050499,-157.0,0.0002274,2]
[384325477,1757337050508,-500.0,0.0002274,2]
[384325478,1757337050517,-157.0,0.0002274,2]
[384325479,1757337050527,-500.0,0.0002274,2]
[384325480,1757337050536,-2100.0,0.00022808,2]
[384325481,1757337050545,-583.45,0.00022835,2]
[384325482,1757337050555,-1000.0,0.00022949,20]
[384325483,1757337050564,-492.0,0.00022949,20]
[384325484,1757337050573,-9514.98,0.00023,7]
[384325485,1757337050583,-1000.0,0.00023,2]
[384325486,1757337050592,-203.26219058,0.00023,7]
[384325487,1757337050602,-160.0,0.00023,7]
[384325488,1757337050611,-160.0,0.00023,7]
[384325489,1757337050620,-530.71506861,0.00023,7]
[384325490,1757337050630,-157.0,0.00023014,2]
[384325491,1757337050640,-291.0140183,0.00023014,2]
[384325492,1757337050649,-157.0,0.00023014,2]
[384325493,1757337050658,-500.0,0.00023014,2]
[384325494,1757337050668,-499.5434426,0.00023014,2]
[384325495,1757337050677,-157.0,0.00023014,2]
[384325496,1757337050687,-186.0,0.00023014,2]
[384325497,1757337050781,-500.0,0.00023014,2]
[384325498,1757337050791,-201.30257092,0.00023014,2]
[384325499,1757337050801,-157.0,0.00023014,2]
[384325500,1757337050810,-186.0,0.00023014,2]
[384325501,1757337050820,-500.0,0.00023014,2]
[384325502,1757337050829,-157.0,0.00023014,2]
[384325503,1757337050839,-157.0,0.00023014,2]
[384325504,1757337050849,-157.0,0.00023014,2]
[384325505,1757337050859,-186.24724585,0.00023014,2]
[384325506,1757337050867,-235.92880441,0.00023014,2]
[384325507,1757337050877,-482.0,0.00023014,2]
[384325508,1757337050886,-157.0,0.00023014,2]
[384325509,1757337050895,-500.0,0.00023014,2]
[384325510,1757337050905,-157.0,0.00023014,2]
[384325511,1757337050915,-500.0,0.00023014,2]
[384325512,1757337050925,-450.0,0.00023063,2]
[384325513,1757337050934,-8413.59,0.000231,7]
[384325514,1757337050944,-34152.58273539,0.000231,7]
[384325515,1757337051088,8764.27517742,0.00013356,2]
[384325516,1757337051113,10000.01,0.00013356,2]
[384325517,1757337051137,6746.5285974,0.00013356,2]
[384325518,1757337051491,-503.59418447,0.00013668,2]
[384325519,1757337051500,-200.0,0.00013668,2]
[384325520,1757337051510,-500.0,0.00013668,2]
[384325521,1757337051519,-500.0,0.00013668,2]
[384325522,1757337051529,-500.0,0.00013668,2]
[384325523,1757337051538,-500.0,0.00013668,2]
[384325524,1757337051548,-377.37013867,0.00013668,2]
[384325525,1757337051557,-393.32100967,0.00013668,2]
[384325526,1757337051566,-500.0,0.00013668,2]
[384325527,1757337051575,-500.0,0.00013668,2]
[384325528,1757337051585,-574.68995412,0.00013668,2]
[384325529,1757337051594,-219.95740334,0.00013668,2]
[384325530,1757337051603,-500.0,0.00013668,2]
[384325531,1757337051612,-500.0,0.00013668,2]
[384325532,1757337051622,-500.0,0.00013668,2]
[384325533,1757337051633,-548.72319073,0.00013668,2]
[384325534,1757337051643,-400.02710972,0.00013668,2]
[384325535,1757337051652,-500.0,0.00013668,2]
[384325536,1757337051662,-500.0,0.00013668,2]
[384325537,1757337051672,-500.0,0.00013668,2]
[384325538,1757337051682,-474.22713755,0.00013668,2]
[384325539,1757337051691,-480.0,0.00013698,2]
[384325540,1757337051701,-480.0,0.00013698,2]
[384325541,1757337051710,-480.0,0.00013698,2]
[384325542,1757337051719,-480.0,0.00013698,2]
[384325543,1757337051730,-480.0,0.00013698,2]
[384325544,1757337051740,-480.0,0.00013698,2]
[384325545,1757337051749,-480.0,0.00013698,2]
[384325546,1757337051758,-480.0,0.00013972,2]
[384325547,1757337051767,-358.33127415,0.00013972,2]
[384325548,1757337051777,-27730.28726461,0.000231,7]
[384325549,1757337051786,-203.26219058,0.000231,7]
[384325550,1757337051796,-500.0,0.0002328,8]
[384325551,1757337051806,-500.0,0.00023287,2]
[384325552,1757337051816,-1785.81,0.00023287,2]
[384325553,1757337051826,-157.0,0.00023288,2]
[384325554,1757337051835,-157.0,0.00023288,2]
[384325555,1757337051844,-264.85016489,0.00023288,2]
[384325556,1757337051853,-500.0,0.00023288,2]
[384325557,1757337051863,-225.64,0.00023288,2]
[384325558,1757337051872,-282.07115165,0.00023288,2]
[384325559,1757337051881,-157.0,0.00023288,2]
[384325560,1757337051892,-157.0,0.00023288,2]
[384325561,1757337051901,-157.0,0.00023288,2]
[384325562,1757337051912,-157.0,0.00023288,2]
[384325563,1757337051922,-500.0,0.00023288,2]
[384325564,1757337051931,-162.0,0.00023288,2]
[384325565,1757337051940,-186.0,0.00023288,2]
[384325566,1757337051950,-203.26219058,0.000233,3]
[384325567,1757337051959,-217.62647793,0.000233,3]
[384325568,1757337051968,-160.0,0.000233,3]
[384325569,1757337051978,-846.71598105,0.000233,3]
[384325570,1757337051987,-160.0,0.000233,3]
[384325571,1757337051997,-530.71506861,0.000233,3]
[384325572,1757337052007,-3563.57803225,0.00023338,2]
[384325574,1757337303672,1000.0,0.00025,30]
[384325577,1757337624172,639.27668748,0.00013326,2]
[384325585,1757337733884,160.912332,0.00025,30]
[384325590,1757337843642,612.78795264,0.00013327,2]
[384325596,1757337913688,160.912332,0.000245,30]
[384325640,1757338128190,20109.59216902,0.00028747,60]
[384325693,1757338232715,-646.79648,0.00013461,2]
[384325695,1757338232725,-300.0,0.00013499,2]
[384325696,1757338232735,-300.0,0.00013499,2]
[384325698,1757338232746,-300.0,0.00013499,2]
[384325699,1757338232755,-1200.0,0.00013499,2]
[384325701,1757338232765,-21918.50551847,0.000135,2]
[384325703,1757338232777,-462.228,0.000135,2]
[384325705,1757338232788,-257.8791796,0.000135,2]
[384325707,1757338232799,-370.0,0.000135,2]
[384325731,1757338238555,-5111.94940245,0.000135,2]
[384325870,1757338241039,-392.96078784,0.00013499,2]
[384326119,1757338243860,-107.03921216,0.00013499,2]
[384326120,1757338243871,-252.16557984,0.00013499,2]
[384326775,1757338308248,1330.41940756,0.00013399,2]
[384326780,1757338337756,42417.51595232,0.000134,2]
[384326781,1757338337782,3253.4814026,0.000134,2]
[384326782,1757338337807,10000.01,0.000134,2]
[384326783,1757338337832,10000.01,0.000134,2]
[384326784,1757338337857,10000.01,0.000134,2]
[384326785,1757338337883,10000.01,0.000134,2]
[384326786,1757338337908,10000.01,0.000134,2]
[384326787,1757338337932,10000.01,0.000134,2]
[384326788,1757338337958,10000.01,0.000134,2]
[384326789,1757338337984,10000.01,0.000134,2]
[384326790,1757338338011,10000.01,0.000134,2]
[384326791,1757338338044,10000.01,0.000134,2]
[384326792,1757338338070,10000.01,0.000134,2]
[384326793,1757338338095,10000.01,0.000134,2]
[384326794,1757338338120,10000.01,0.000134,2]
[384326795,1757338338146,10000.01,0.000134,2]
[384326894,1757338935106,160.912332,0.000245,30]
[384326895,1757339048009,721.27042196,0.00024,30]
[384326896,1757339114907,2781.7818846,0.00012491,2]
[384326976,1757339431882,-513.69948062,0.00013273,2]
[384326978,1757339431893,-650.41750103,0.00013273,2]
[384326980,1757339431903,-612.78795264,0.000133,2]
[384326982,1757339431912,-1200.0,0.00013371,2]
[384326984,1757339431922,-300.0,0.00013372,2]
[384326986,1757339431931,-300.0,0.00013372,2]
[384326988,1757339431940,-1200.0,0.00013372,2]
[384326990,1757339431949,-500.0,0.00013373,2]
[384326992,1757339431958,-500.53705453,0.00013373,2]
[384326994,1757339431968,-502.79872657,0.00013373,2]
[384326996,1757339431977,-500.52292029,0.00013373,2]
[384326998,1757339431987,-500.0,0.00013373,2]
[384327000,1757339431996,-500.0,0.00013373,2]
[384327002,1757339432005,-373.49826182,0.00013373,2]
[384327004,1757339432014,-160.02831354,0.00013373,2]
[384327006,1757339432024,-500.0,0.00013373,2]
[384327008,1757339432033,-500.0,0.00013373,2]
[384327010,1757339432042,-446.47956864,0.00013373,2]
[384327012,1757339432051,-50000.0,0.00013373,2]
[384327014,1757339432061,-500.0,0.00013373,2]
[384327017,1757339432076,-500.0,0.00013373,2]
[384327019,1757339432085,-500.68659067,0.00013373,2]
[384327021,1757339432094,-500.38479179,0.00013373,2]
[384327022,1757339432102,-500.0,0.00013373,2]
[384327025,1757339432111,-500.0,0.00013373,2]
[384327027,1757339432121,-500.0,0.00013373,2]
[384327028,1757339432131,-500.0,0.00013373,2]
[384327030,1757339432140,-500.0,0.00013373,2]
[384327032,1757339432149,-500.0,0.00013373,2]
[384327034,1757339432159,-501.23191424,0.00013373,2]
[384327036,1757339432169,-500.0,0.00013373,2]
[384327038,1757339432179,-223.22456506,0.00013373,2]
[384327040,1757339432188,-500.0,0.00013373,2]
[384327042,1757339432197,-370.50742776,0.00013373,2]
[384327044,1757339432207,-500.52929922,0.00013373,2]
[384327046,1757339432216,-500.0,0.00013373,2]
[384327048,1757339432226,-500.0,0.00013373,2]
[384327050,1757339432235,-612.78795263,0.00013375,2]
[384327052,1757339432245,-500.0,0.00013393,2]
[384327054,1757339432254,-500.0,0.00013393,2]
[384327057,1757339432264,-500.0,0.00013393,2]
[384327059,1757339432273,-500.0,0.00013393,2]
[384327061,1757339432283,-539.56228516,0.00013393,2]
[384327062,1757339432292,-188.74428614,0.00013393,2]
[384327064,1757339432302,-500.0,0.00013393,2]
[384327067,1757339432311,-500.0,0.00013393,2]
[384327069,1757339432321,-500.0,0.00013393,2]
[384327071,1757339432331,-500.0,0.00013393,2]
[384327073,1757339432341,-500.0,0.00013393,2]
[384327074,1757339432351,-500.0,0.00013393,2]
[384327076,1757339432365,-500.0,0.00013393,2]
[384327078,1757339432377,-365.15308345,0.00013393,2]
[384327081,1757339432387,-500.0,0.00013393,2]
[384327082,1757339432397,-500.0,0.00013393,2]
[384327085,1757339432406,-500.0,0.00013393,2]
[384327087,1757339432415,-500.0,0.00013393,2]
[384327088,1757339432425,-500.0,0.00013393,2]
[384327090,1757339432435,-500.0,0.00013393,2]
[384327092,1757339432445,-235.52658663,0.00013393,2]
[384327093,1757339432454,-500.0,0.00013393,2]
[384327095,1757339432463,-500.0,0.00013393,2]
[384327097,1757339432475,-500.0,0.00013393,2]
[384327098,1757339432485,-500.0,0.00013393,2]
[384327100,1757339432495,-359.7084554,0.00013393,2]
[384327102,1757339432504,-500.0,0.00013393,2]
[384327103,1757339432514,-500.0,0.00013393,2]
[384327105,1757339432523,-500.0,0.00013393,2]
[384327107,1757339432533,-520.18324924,0.00013393,2]
[384327108,1757339432543,-500.0,0.00013393,2]
[384327110,1757339432553,-363.39382827,0.00013393,2]
[384327112,1757339432562,-500.0,0.00013393,2]
[384327114,1757339432573,-500.0,0.00013393,2]
[384327116,1757339432582,-500.0,0.00013393,2]
[384327118,1757339432591,-500.0,0.00013393,2]
[384327120,1757339432600,-500.0,0.00013393,2]
[384327121,1757339432610,-429.73220787,0.00013393,2]
[384327123,1757339432624,-500.0,0.00013393,2]
[384327125,1757339432634,-500.0,0.00013393,2]
[384327126,1757339432643,-500.0,0.00013393,2]
[384327128,1757339432652,-500.0,0.00013393,2]
[384327130,1757339432662,-500.0,0.00013393,2]
[384327131,1757339432676,-500.0,0.00013393,2]
[384327133,1757339432686,-500.0,0.00013393,2]
[384327135,1757339432695,-154.64307824,0.00013393,2]
[384327136,1757339432705,-500.0,0.00013393,2]
[384327138,1757339432715,-500.0,0.00013393,2]
[384327140,1757339432724,-500.0,0.00013393,2]
[384327141,1757339432734,-500.0,0.00013393,2]
[384327143,1757339432744,-500.0,0.00013393,2]
[384327145,1757339432753,-500.0,0.00013393,2]
[384327146,1757339432763,-500.0,0.00013393,2]
[384327148,1757339432772,-500.0,0.00013393,2]
[384327150,1757339432782,-265.23941628,0.00013393,2]
[384327152,1757339432791,-500.0,0.00013393,2]
[384327154,1757339432801,-500.0,0.00013393,2]
[384327155,1757339432810,-500.0,0.00013393,2]
[384327157,1757339432819,-500.0,0.00013393,2]
[384327159,1757339432829,-500.0,0.00013393,2]
[384327160,1757339432839,-500.0,0.00013393,2]
[384327162,1757339432849,-500.0,0.00013393,2]
[384327164,1757339432858,-500.0,0.00013393,2]
[384327166,1757339432869,-500.0,0.00013393,2]
[384327168,1757339432881,-500.0,0.00013393,2]
[384327169,1757339432891,-500.0,0.00013393,2]
[384327171,1757339432900,-500.0,0.00013393,2]
[384327173,1757339432909,-500.0,0.00013393,2]
[384327174,1757339432918,-500.0,0.00013393,2]
[384327176,1757339432927,-500.0,0.00013393,2]
[384327178,1757339432938,-500.0,0.00013393,2]
[384327180,1757339432949,-500.0,0.00013393,2]
[384327181,1757339432959,-248.09479363,0.00013393,2]
[384327183,1757339432974,-251.90520637,0.00013393,2]
[384327185,1757339432986,-393.09479362,0.00013393,2]
[384327187,1757339432998,-106.90520637,0.00013393,2]
[384327189,1757339433008,-500.0,0.00013395,2]
[384327190,1757339433018,-246.82352976,0.00013399,2]
[384327192,1757339433027,-374.0045181,0.00013399,2]
[384327416,1757339437856,-191.1532958,0.00013399,2]
[384327418,1757339437865,-184328.86264508,0.000134,2]
[384327419,1757339437875,-612.78795263,0.00013449,2]
[384327421,1757339437885,-57459.12555422,0.000135,2]
[384327422,1757339437895,-500.0,0.000135,2]
[384327424,1757339437904,-815.78714057,0.000135,2]
[384327426,1757339437914,-612.78795263,0.00013524,2]
[384327429,1757339437924,-612.78795263,0.00013598,2]
[384327430,1757339437934,-500.0,0.00013669,2]
[384327431,1757339437943,-501.41367027,0.00013673,2]
[384327432,1757339437953,-363.66498283,0.00013673,2]
[384327433,1757339437962,-502.6831754,0.00013673,2]
[384327434,1757339437971,-500.84092081,0.00013673,2]
[384327435,1757339437981,-500.0,0.00013673,2]
[384327436,1757339437990,-500.00700734,0.00013673,2]
[384327437,1757339437999,-162.45900971,0.00013673,2]
[384327438,1757339438008,-500.0,0.00013673,2]
[384327439,1757339438017,-164.36922765,0.00013673,2]
[384327440,1757339438027,-500.0,0.00013673,2]
[384327441,1757339438036,-500.0,0.00013673,2]
[384327442,1757339438045,-500.8031173,0.00013673,2]
[384327443,1757339438054,-304.1350036,0.00013673,2]
[384327444,1757339438064,-500.0,0.00013673,2]
[384327445,1757339438073,-500.0,0.00013673,2]
[384327446,1757339438082,-19363.40046272,0.00013695,2]
[384327447,1757339438092,-9329.37029397,0.00013696,2]
[384327448,1757339438101,-253.70851121,0.00013698,2]
[384327449,1757339438110,-480.0,0.00013698,2]
[384327450,1757339438119,-480.0,0.00013698,2]
[384327451,1757339438128,-480.0,0.00013698,2]
[384327452,1757339438138,-486.43796317,0.00013698,2]
[384327453,1757339438147,-445.12917924,0.00013698,2]
[384327454,1757339438157,-481.66319009,0.00013698,2]
[384327455,1757339438167,-481.78186912,0.00013698,2]
[384327456,1757339438176,-480.0,0.00013698,2]
[384327457,1757339438185,-461.47486392,0.00013698,2]
[384327458,1757339438194,-480.0,0.00013698,2]
[384327459,1757339438204,-485.12721085,0.00013698,2]
[384327460,1757339438213,-480.0,0.00013698,2]
[384327461,1757339438222,-151.0,0.00013698,2]
[384327462,1757339438231,-151.0,0.00013698,2]
[384327463,1757339438240,-480.0,0.00013698,2]
[384327464,1757339438250,-151.0,0.00013698,2]
[384327465,1757339438259,-154.774767,0.00013698,2]
[384327466,1757339438268,-480.0,0.00013698,2]
[384327467,1757339438277,-506.97930742,0.00013698,2]
[384327468,1757339438286,-480.0,0.00013698,2]
[384327469,1757339438296,-480.0,0.00013698,2]
[384327470,1757339438305,-482.2787016,0.00013698,2]
[384327471,1757339438315,-480.0,0.00013698,2]
[384327472,1757339438324,-480.0,0.00013698,2]
[384327473,1757339438333,-480.0,0.00013698,2]
[384327474,1757339438342,-480.0,0.00013698,2]
[384327475,1757339438352,-480.0,0.00013698,2]
[384327476,1757339438362,-153.352167,0.00013698,2]
[384327477,1757339438371,-480.0,0.00013698,2]
[384327478,1757339438381,-480.0,0.00013698,2]
[384327479,1757339438390,-480.0,0.00013698,2]
[384327480,1757339438400,-151.0,0.00013698,2]